Cogmind - Beta 17 @@@ ROGUE MODE // 2026.07.09 @ 16:19:41 Player: harambe Result: Destroyed by P-60 Hacker with Shock Rifle Performance ------------- Evolutions (4) 2000 Regions Visited (7) 1400 Robots Destroyed (107) 535 Value Destroyed (4192) 4192 Prototype IDs (5) 100 Alien Tech Used (0) 0 Bonus (41) 41 TOTAL SCORE: 8268 Bonus ------- High Alert Combat Kills 41 Cogmind --------- Core Integrity 0/850 Matter 290/300 Energy 150/150 System Corruption 4% Temperature Cool (0) Movement Rolling (145) Ox3 Location -6/Factory Parts ------- > --- POWER (1) -------- Light Angular Momentum Engine > --- PROPULSION (6) --- VSS Leg Improved Carbon-fiber Leg Improved Titanium Leg Armored Leg Compact Wheel Improved Gravmag System > --- UTILITY (6) ------ High-capacity Storage Unit Structural Scanner Advanced Signal Interpreter Advanced Melee Analysis Suite Improved Target Analyzer Improved Core Shielding > --- WEAPON (2) ------- Phase Cannon Great Maul > --- INVENTORY (20) --- Improved Deuterium Engine Micro Nuclear Core Cesium-ion Thruster Xenon Bombardment Thruster Coolant Injector High-capacity Storage Unit High-capacity Storage Unit Large Battery (200) Medium Matter Pod (100) Terrain Scanner Improved Terrain Scan Processor Improved Terrain Scan Processor Advanced Melee Analysis Suite Improved Core Shielding Hardened Medium Armor Plating Layered Light Armor Plating Heavy Machine Gun Heavy Flak Cannon Improved Grenade Launcher Heavy Flail Peak State ------------ > --- POWER ------------ Light Angular Momentum Engine > --- PROPULSION ------- VSS Leg Improved Carbon-fiber Leg Improved Titanium Leg Armored Leg Compact Wheel Improved Gravmag System > --- UTILITY ---------- High-capacity Storage Unit Structural Scanner Advanced Signal Interpreter Advanced Melee Analysis Suite Improved Target Analyzer Improved Core Shielding > --- WEAPON ----------- Phase Cannon Great Maul > --- INVENTORY -------- Improved Deuterium Engine Micro Nuclear Core Cesium-ion Thruster Xenon Bombardment Thruster Coolant Injector High-capacity Storage Unit High-capacity Storage Unit Large Battery Medium Matter Pod Terrain Scanner Improved Terrain Scan Processor Improved Terrain Scan Processor Advanced Melee Analysis Suite Improved Core Shielding Hardened Medium Armor Plating Layered Light Armor Plating Heavy Machine Gun Heavy Flak Cannon Improved Grenade Launcher Heavy Flail [Rating: 63] Favorites ----------- Power Light Ion Engine Engine Light Ion Engine Propulsion Compact Wheel Treads Improved Treads Leg Carbon-fiber Leg Wheel Compact Wheel Hover Unit Gravmag System Utility High-capacity Storage Unit Device Structural Scanner Storage High-capacity Storage Unit Processor Targeting Computer Protection Light Armor Plating Weapon Improved EM Shotgun Energy Gun Improved EM Shotgun Energy Cannon Plasma Cannon Ballistic Gun Shotgun Ballistic Cannon Mini Assault Cannon Launcher EMP Blaster Special Weapon Mining Laser Impact Weapon Great Maul Slashing Weapon Greatsword Build | -11 -10 -10 -9 -9 -8 -7 -6 ------- Run | Yrd Mat Min Mat Sto Mat Fac Fac Slots Evolved 8 | . . . 2 . 2 2 2 Power . | . . . . . . . . Propulsion 4 | . . . . . 1 1 2 Utility 4 | . . . 2 . 1 1 . Weapon . | . . . . . . . . Parts Attached 106 | . 13 . 5 13 14 16 45 Power 12 | . 2 . 1 2 1 1 5 Engine 12 | . 2 . 1 2 1 1 5 Core . | . . . . . . . . Reactor . | . . . . . . . . Propulsion 36 | . 4 . 1 1 7 5 18 Treads 12 | . 2 . 1 1 2 3 3 Leg 6 | . . . . . . . 6 Wheel 15 | . 2 . . . 5 2 6 Hover 3 | . . . . . . . 3 Flight . | . . . . . . . . Utility 31 | . 3 . 3 2 5 5 13 Device 10 | . 2 . . . 3 2 3 Storage 4 | . 1 . . . . 1 2 Processor 10 | . . . 1 . 1 1 7 Hackware . | . . . . . . . . Protection 7 | . . . 2 2 1 1 1 Artifact . | . . . . . . . . Weapon 27 | . 4 . . 8 1 5 9 Energy Gun 8 | . 2 . . 5 1 . . Energy Cannon 4 | . . . . 1 . 1 2 Ballistic Gun 3 | . 1 . . 1 . 1 . Ballistic Cannon 5 | . . . . . . 2 3 Launcher 1 | . . . . . . . 1 Special Weapon 1 | . 1 . . . . . . Impact Weapon 4 | . . . . 1 . 1 2 Slashing Weapon 1 | . . . . . . . 1 Piercing Weapon . | . . . . . . . . Special Melee Weapon . | . . . . . . . . Unidentified Prototypes 5 | . . . . 4 . 1 . Parts Lost 29 | . . . . . 4 . 25 Power 2 | . . . . . . . 2 Propulsion 15 | . . . . . 1 . 14 Utility 8 | . . . . . 2 . 6 Weapon 4 | . . . . . 1 . 3 Highest Loss Streak 14 | . . . . . 4 . 14 To Critical Strikes . | . . . . . . . . Average Backups 19 | . 15 20 19 19 19 19 19 Power 1 | . 1 2 1 1 1 1 1 Propulsion 3 | . 3 4 4 5 5 4 1 Utility 7 | . 3 7 5 6 5 7 10 Weapon 6 | . 6 7 8 6 7 7 5 Tool/Special . | . . . . . . . . Unused Backups 60 | . 14 . 6 4 2 7 27 Power 10 | . 4 . 1 1 . . 4 Propulsion 7 | . 3 . . . . 2 2 Utility 20 | . 2 . 1 . 1 2 14 Weapon 23 | . 5 . 4 3 1 3 7 Tool/Special . | . . . . . . . . Average Slot Usage (%) 94 | . 98 100 99 100 98 96 87 Engine 8 | . 14 14 11 11 9 7 5 Treads 9 | . 13 14 11 11 9 15 5 Leg 4 | . . . . . . . 10 Wheel 12 | . 13 14 11 11 18 12 10 Hover 1 | . . . . . . . 2 Device 12 | . 13 14 11 11 14 20 8 Storage 8 | . 14 14 11 11 9 7 6 Processor 12 | . . . 10 11 9 9 20 Protection 5 | . . . 11 11 11 7 2 Energy Gun 7 | . 18 14 11 15 17 1 . Energy Cannon 2 | . . . . . . 5 3 Ballistic Gun 2 | . 8 14 11 3 . 1 . Ballistic Cannon 2 | . . . . . . 5 3 Impact Weapon 1 | . . . . 2 . . 2 Peak Build Rating 63 | . 11 11 15 19 28 48 63 Average Rating 34 | . 9 11 14 17 25 38 52 On Entrance 18 | 6 6 11 11 15 19 28 48 Avg Prop Armor Cover (%) 14 | . 11 12 8 9 7 14 19 Naked Turns . | . . . . . . . . Heaviest Build 107 | 11 50 50 57 58 61 69 107 Greatest Support 58 | 20 20 16 16 16 32 28 58 Greatest Overweight (x) 16 | . 4 3 3 3 2 2 16 Average Overweight (x) 2 | . 2 3 3 3 1 2 1 Largest Inventory Capacity 25 | . 20 20 20 20 20 20 25 Average Capacity 20 | . 17 20 20 20 20 20 21 Most Carried 25 | . 20 20 20 20 20 20 25 Average Carried 19 | . 15 20 19 19 19 19 19 Final Capacity 20 | 8 20 20 20 20 20 20 20 Final Carried 20 | 6 20 20 20 20 20 20 20 Class Distribution -------------------- 77% | Mutant 19% | Scavenger-Mutant 3% | Scavenger-Gladiator Dominant Class ---------------- Mutant | -10/Materials Mutant | -10/Mines Mutant | -9/Materials Mutant | -9/Storage Mutant | -8/Materials Mutant | -7/Factory Scavenger-Mutant | -6/Factory Resources | -11 -10 -10 -9 -9 -8 -7 -6 ----------- Run | Yrd Mat Min Mat Sto Mat Fac Fac Matter Collected 2931 | 200 177 . 60 498 155 388 1453 Remotely 293 | . . . . . . . 293 Salvage Created 4623 | . 247 . 95 924 964 533 1860 Parts 221 | . 20 . 5 54 53 24 65 Haulers Intercepted . | . . . . . . . . Recyclers Shooed 5 | . . . 1 . . . 4 Parts Field Recycled . | . . . . . . . . Retrieved Matter . | . . . . . . . . Parts Self-Destructed . | . . . . . . . . Prevented . | . . . . . . . . Parts Restored . | . . . . . . . . Kills | -11 -10 -10 -9 -9 -8 -7 -6 ------- Run | Yrd Mat Min Mat Sto Mat Fac Fac Combat Hostiles Destroyed 91 | . 11 . 2 15 16 12 35 Melee 13 | . . . . . . . 13 Guns 43 | . 11 . 2 14 15 1 . Cannons 30 | . . . . . . 11 19 AOE 1 | . . . . 1 . . . Classes Destroyed 14 | . 3 . . 5 2 1 3 Worker 4 | . . . . 2 1 1 . Builder 2 | . . . . 1 . . 1 Recycler 6 | . . . . 1 1 . 4 Mechanic 1 | . . . . . 1 . . Operator 2 | . 1 . . . 1 . . Watcher 1 | . . . . 1 . . . Swarmer 14 | . 9 . . . 2 . 3 Grunt 41 | . 2 . 2 7 10 6 14 Brawler 1 | . . . . . . . 1 Duelist 1 | . . . . . . . 1 Sentry 19 | . . . . 8 3 3 5 Hunter 7 | . . . . . 1 2 4 Programmer 7 | . . . . . . 1 6 Behemoth 1 | . . . . . . . 1 Best Kill Streak 8 | . 3 . 1 8 5 4 4 Combat Bots Only 4 | . 3 . 1 4 4 4 4 Max Kills in Single Turn 3 | . 1 . 1 3 2 1 1 Gunslinging 1 | . . . . . 1 . . Exploded 1 | . . . . 1 . . . Melee 1 | . . . . . . . 1 Uniques/NPCs Destroyed . | . . . . . . . . Combat | -11 -10 -10 -9 -9 -8 -7 -6 -------- Run | Yrd Mat Min Mat Sto Mat Fac Fac Hostile Shots Fired 778 | . 35 . 5 66 59 88 525 Missed 231 | . 8 . . 17 13 24 169 Hits 547 | . 27 . 5 49 46 64 356 Melee 1 | . . . . . . . 1 Projectile 546 | . 27 . 5 49 46 64 355 Critical Strikes 7 | . . . . . 1 1 5 Part Disruptions 1 | . . . . . . . 1 Damage Taken 7499 | . 226 . 62 797 786 787 4841 Core 1343 | . 65 . . 141 214 70 853 Absorbed by Shields . | . . . . . . . . Redirected to Shielding 12 | . . . . . . . 12 Regen/Repaired (Parts) 75 | . . . . . 75 . . Core Remaining (%) 77 | 100 . 74 . 64 61 90 . Volleys Fired 247 | . 27 . 6 36 42 39 97 Largest 2 | . 2 . 2 2 2 2 2 Hottest 120 | . 100 . 68 90 90 120 120 Shots Fired 483 | . 50 . 9 72 81 79 192 Gun 213 | . 47 . 9 72 81 4 . Cannon 265 | . . . . . . 75 190 Launcher 2 | . . . . . . . 2 Special 3 | . 3 . . . . . . Kinetic 235 | . 10 . 6 19 . 39 161 Thermal 83 | . 16 . . . . 38 29 Explosive . | . . . . . . . . Electromagnetic 165 | . 24 . 3 53 81 2 2 Robot Hit Streak 32 | . 4 . 7 32 31 19 16 Robot Miss Streak 4 | . 4 . 1 1 4 3 3 Penetration Max . | . . . . . . . . Secondary Targets 4 | . 2 . . . 2 . . Max Gunslinging Chain 1 | . 1 . . . 1 . . Shots Hit Robots 403 | . 25 . 9 68 70 59 172 Core Hits 194 | . 16 . 6 43 50 25 54 Critical Kills 2 | . . . . . . . 2 Critical Parts Destroyed 6 | . . . . 1 . . 5 Critical Strikes 21 | . 1 . . 1 . 4 15 Burn 1 | . 1 . . . . . . Destroy 1 | . . . . 1 . . . Blast 12 | . . . . . . 4 8 Smash 7 | . . . . . . . 7 Melee Attacks 60 | . . . . 10 . 2 48 Impact 44 | . . . . 10 . 2 32 Slashing 16 | . . . . . . . 16 Piercing . | . . . . . . . . Sneak Attacks 1 | . . . . . . . 1 Combat Hostiles . | . . . . . . . . Follow-up Attacks . | . . . . . . . . Damage Inflicted 10472 | . 333 . 137 1455 1408 1583 5556 Guns 2897 | . 333 . 137 1081 1276 70 . Cannons 5221 | . . . . . . 1513 3708 Explosions 535 | . . . . 335 132 . 68 Melee 1819 | . . . . 39 . . 1780 Ramming . | . . . . . . . . Kinetic 4393 | . 86 . 92 278 . 779 3158 Thermal 1859 | . 75 . . 335 132 767 550 Explosive . | . . . . . . . . Electromagnetic 2401 | . 172 . 45 803 1276 37 68 Impact 1028 | . . . . 39 . . 989 Slashing 791 | . . . . . . . 791 Piercing . | . . . . . . . . Highest Corruption 4 | . 1 1 . . . 4 4 Average Corruption 2 | . 1 1 . . . 2 3 Corruption Purged . | . . . . . . . . Corruption Blocked . | . . . . . . . . Effects 33 | . 4 . . . . 7 22 Message Errors 9 | . 2 . . . . . 7 Matter Fused 10 | . 1 . . . . 4 5 Heat Flow Errors 2 | . . . . . . 1 1 Energy Discharges 5 | . 1 . . . . . 4 Data Loss (minor) 3 | . . . . . . 1 2 Data Loss (major) 1 | . . . . . . . 1 Misfires 1 | . . . . . . 1 . Alerts 2 | . . . . . . . 2 Overload Shots . | . . . . . . . . Overflow Damage 543 | . . . . . . 24 519 Projectiles 111 | . . . . . . 24 87 Explosions . | . . . . . . . . Melee 432 | . . . . . . . 432 Knockbacks 27 | . . . . . . 5 22 Impact 5 | . . . . . . . 5 Kinetic 22 | . . . . . . 5 17 Secondary . | . . . . . . . . Self-Inflicted Damage 164 | . . . . 95 69 . . Shots 5 | . . . . 3 2 . . Rammed . | . . . . . . . . Targets Rammed . | . . . . . . . . Kicked . | . . . . . . . . Crushed . | . . . . . . . . Highest Temperature 310 | . 240 . 21 210 310 198 181 Average Temperature 75 | . 65 . 10 60 112 120 71 Received Heat Transfer 1599 | . 6 . 36 255 297 246 759 Effects 1 | . . . . . 1 . . Interference 1 | . . . . . 1 . . Siege Activations . | . . . . . . . . Martial Activations . | . . . . . . . . Shielding Activations . | . . . . . . . . Robots Disrupted 1 | . . . . . 1 . . Combat Hostiles 1 | . . . . . 1 . . Robots Corrupted 4 | . . . . . 1 . 3 Combat Hostiles 4 | . . . . . 1 . 3 Parts Fried 11 | . . . . 4 5 . 2 Impact Corruptions 15 | . . . . . . . 15 Robots Melted . | . . . . . . . . Combat Hostiles . | . . . . . . . . Parts Melted 8 | . . . . . 1 5 2 Heat Transferred 3346 | . 296 . . 400 200 1400 1050 Parts Sabotaged . | . . . . . . . . Parts Stolen . | . . . . . . . . Parts Stripped . | . . . . . . . . Power Chain Reactions 7 | . . . . 5 2 . . Alert | -11 -10 -10 -9 -9 -8 -7 -6 ------- Run | Yrd Mat Min Mat Sto Mat Fac Fac Maximum Alert Level 2 | . . . . 1 1 . 2 Low Security (%) 61 | . 100 100 100 82 34 100 18 Level 1 31 | . . . . 17 65 . 61 Level 2 7 | . . . . . . . 20 Level 3 . | . . . . . . . . Level 4 . | . . . . . . . . Level 5 . | . . . . . . . . High Security . | . . . . . . . . Max Security . | . . . . . . . . Peak Influence 437 | . 70 5 41 238 358 149 437 Initial 149 | . . 5 . . 94 149 35 Average 154 | . 27 1 7 123 224 46 278 Influence Increases 3051 | . 289 . 87 561 505 373 1236 Destroy 0b10 Robot/C 1820 | . 220 . 40 300 320 240 700 Destroy 0b10 Robot/NC 80 | . 5 . . 25 20 5 25 Destroy Leader 532 | . 40 . 10 102 90 80 210 Allied During Kill 2 | . . . . . 1 1 . Successful Hack 142 | . 22 . 37 30 7 28 18 Disable Machine 60 | . . . . 30 . 15 15 Destroy Structure 70 | . 2 . . 29 7 4 28 Partial Spotted 15 | . . . . . . . 15 Lose Combat Pursuer 330 | . . . . 45 60 . 225 Influence Decreases 2651 | . 274 15 87 337 400 629 909 Entered New Map 358 | . . 10 . . 130 180 38 Time Decay 1997 | . 274 5 87 337 230 443 621 Lost Part 290 | . . . . . 40 . 250 Lost Ally 6 | . . . . . . 6 . Squads Dispatched 27 | . 2 . . . 7 5 13 Investigation 6 | . . . . . 3 2 1 Extermination 8 | . . . . . . 2 6 Reinforcement 10 | . 2 . . . 1 1 6 Assault . | . . . . . . . . Garrison 3 | . . . . . 3 . . Intercept . | . . . . . . . . Searches Triggered . | . . . . . . . . Construction Impeded 1 | . . . . . . . 1 Haulers Reinforced . | . . . . . . . . Active Scanning Responses . | . . . . . . . . Cargo Convoy Interrupts 1 | . . . . . . . 1 Stealth | -11 -10 -10 -9 -9 -8 -7 -6 --------- Run | Yrd Mat Min Mat Sto Mat Fac Fac Distress Signals 9 | . . . . 1 3 . 5 Communications Jammed . | . . . . . . . . Distress Signals . | . . . . . . . . Times Spotted 144 | . 20 . 4 24 21 17 58 Peak Tracking Total 7 | . 4 . 3 4 7 4 7 Tactical Retreats 14 | . . . . 3 2 . 9 Traps | -11 -10 -10 -9 -9 -8 -7 -6 ------- Run | Yrd Mat Min Mat Sto Mat Fac Fac Traps Triggered 6 | . 1 . . 1 1 1 2 Indirectly . | . . . . . . . . Trap Hack Attempts . | . . . . . . . . Triggered . | . . . . . . . . Disarmed . | . . . . . . . . Reprogrammed . | . . . . . . . . Reused . | . . . . . . . . Traps Extracted . | . . . . . . . . Installed . | . . . . . . . . Triggered . | . . . . . . . . Machines | -11 -10 -10 -9 -9 -8 -7 -6 ---------- Run | Yrd Mat Min Mat Sto Mat Fac Fac Machines Disabled 4 | . . . . 2 . 1 1 Max in Single Turn 1 | . . . . 1 . 1 1 Machines Repaired . | . . . . . . . . Machines Dismantled . | . . . . . . . . Machines Sabotaged . | . . . . . . . . Overloaded Fab Kills . | . . . . . . . . Hacking | -11 -10 -10 -9 -9 -8 -7 -6 --------- Run | Yrd Mat Min Mat Sto Mat Fac Fac Machines Accessed 32 | . 6 . 4 7 4 6 5 Terminals 26 | . 6 . 3 7 2 3 5 Fabricators 1 | . . . . . . 1 . Repair Stations 1 | . . . . . 1 . . Recycling Units . | . . . . . . . . Scanalyzers 3 | . . . 1 . . 2 . Garrison Access 1 | . . . . . 1 . . Total Hacks 83 | . 12 . 9 22 11 16 13 Successful 44 | . 7 . 7 10 6 10 4 Failed 36 | . 4 . 1 12 5 5 9 Catastrophic 6 | . 1 . 1 . 2 . 2 Database Lockouts 3 | . 1 . 1 . . 1 . Manual 43 | . 16 . 6 5 3 8 5 Terminals 66 | . 12 . 7 22 5 7 13 Fabricators 3 | . . . . . . 3 . Repair Stations 4 | . . . . . 4 . . Recycling Units . | . . . . . . . . Scanalyzers 8 | . . . 2 . . 6 . Garrison Access 2 | . . . . . 2 . . Terminal Hacks 22 | . 2 . 4 8 2 2 4 Record 2 | . 1 . . . . 1 . Part Schematic 3 | . . . . 2 . . 1 Robot Analysis 8 | . 1 . 2 1 2 1 1 Open Door 1 | . . . . 1 . . . Branch Access Points 1 | . . . 1 . . . . Terminal Index 1 | . . . . 1 . . . Locate Traps 6 | . . . 1 3 . . 2 Fabricator Hacks 2 | . . . . . . 2 . Load Schematic 1 | . . . . . . 1 . Build 1 | . . . . . . 1 . Repair Station Hacks 3 | . . . . . 3 . . Scan Component 2 | . . . . . 2 . . Repair 1 | . . . . . 1 . . Recycling Unit Hacks . | . . . . . . . . Scanalyzer 7 | . . . 2 . . 5 . Insert Component 2 | . . . 1 . . 1 . Analyze 3 | . . . 1 . . 2 . Retrieve Study 2 | . . . . . . 2 . Garrison Access Hacks . | . . . . . . . . Unauthorized Hacks 10 | . 5 . 1 2 1 1 . Terminals 10 | . 5 . 1 2 1 1 . Assimilate 1 | . 1 . . . . . . Botnet 9 | . 4 . 1 2 1 1 . Fabricators . | . . . . . . . . Repair Stations . | . . . . . . . . Recycling Units . | . . . . . . . . Scanalyzers . | . . . . . . . . Garrison Access . | . . . . . . . . Data Cores Recovered 1 | . . . . . 1 . . Used 1 | . . . . . 1 . . Hacking Detections 25 | . 4 . 2 5 4 5 5 Full Trace Events 6 | . 1 . . 1 2 2 . Feedback Events . | . . . . . . . . Feedback Blocked . | . . . . . . . . Robot Schematics Acquired . | . . . . . . . . Robots Built . | . . . . . . . . Authchips . | . . . . . . . . Time . | . . . . . . . . Total Robot Build Rating . | . . . . . . . . Part Schematics Acquired 5 | . . . 1 2 . 1 1 Parts Built 2 | . . . . . . 2 . Authchips . | . . . . . . . . Time 73 | . . . . . . 73 . Total Part Build Rating 6 | . . . . . . 6 . Part Studies Acquired 2 | . . . . . . 2 . Parts Repaired 1 | . . . . . 1 . . Time 26 | . . . . . 26 . . Parts Recycled . | . . . . . . . . Recycled Matter . | . . . . . . . . Retrieved Matter . | . . . . . . . . Retrieved Components . | . . . . . . . . Parts Scanalyzed 2 | . . . 1 . . 1 . Part Schematics Acquired 2 | . . . 1 . . 1 . Parts Damaged . | . . . . . . . . Bothacking | -11 -10 -10 -9 -9 -8 -7 -6 ------------ Run | Yrd Mat Min Mat Sto Mat Fac Fac Used RIF Installer . | . . . . . . . . Robots Hacked . | . . . . . . . . Non-combat . | . . . . . . . . Combat . | . . . . . . . . Robot Hacks Applied . | . . . . . . . . Relay Couplers Released . | . . . . . . . . Fabnet Peak Effective % . | . . . . . . . . Robots Rewired 1 | . . . . . 1 . . Allies Hacked . | . . . . . . . . Hacks Repelled . | . . . . . . . . Allies | -11 -10 -10 -9 -9 -8 -7 -6 -------- Run | Yrd Mat Min Mat Sto Mat Fac Fac Total Allies 1 | . . . . . 1 . . Largest Group 1 | . . . . . 1 1 . Highest-Rated Group 15 | . . . . . 15 15 . Highest-Rated Ally 15 | . . . . . 15 15 . Total Orders . | . . . . . . . . Ally Attacks 2 | . . . . . . 2 . Total Damage 58 | . . . . . . 58 . Kills . | . . . . . . . . Allies Corrupted . | . . . . . . . . Allies Melted . | . . . . . . . . Intel | -11 -10 -10 -9 -9 -8 -7 -6 ------- Run | Yrd Mat Min Mat Sto Mat Fac Fac Active Infowar (turns) 5361 | . 823 60 427 808 482 1294 1467 Structural 4415 | . 823 60 427 808 482 943 872 Seismic 1814 | . . . . . . 1219 595 Robot Analysis Total 8 | . 1 . 2 1 2 1 1 Derelict Logs Recovered . | . . . . . . . . Drone Launches . | . . . . . . . . Drone Recoveries . | . . . . . . . . Exploration | -11 -10 -10 -9 -9 -8 -7 -6 ------------- Run | Yrd Mat Min Mat Sto Mat Fac Fac Turns Passed 6500 | . 875 60 427 808 486 1294 2550 Spaces Moved 3696 | 1 571 41 243 367 222 838 1413 Core 1 | . . . . . . . 1 Treads 47 | . . . . . . 16 31 Legs 21 | 1 20 . . . . . . Wheels 3627 | . 551 41 243 367 222 822 1381 Hover . | . . . . . . . . Flight . | . . . . . . . . Fastest Speed 95 | 120 95 145 145 145 115 125 105 Average Speed 130 | 120 127 145 145 145 118 128 129 Slowest Speed 850 | 120 145 145 145 145 125 240 850 Overloaded Moves . | . . . . . . . . Propulsion Burnouts . | . . . . . . . . Robots Hopped . | . . . . . . . . Potential Cave-ins . | . . . . . . . . Cave-ins Triggered . | . . . . . . . . Exploration Rate (%) 39 | 2 93 17 28 68 26 31 48 Regions Visited 7 Branch Regions 2 Pre-discovered Areas . | . . . . . . . . Known Exits Taken 1 | . . . 1 . . . . Unknown Exits Taken 6 | 1 1 1 . 1 1 1 . Scrap Searched . | . . . . . . . . Spaces Dug 17 | . 2 . . 4 . 1 10 Terrain Destroyed 59 | . 2 . . 28 5 2 22 Melee 15 | . . . . 4 . 1 10 Projectile 15 | . 2 . . . . 1 12 AOE 29 | . . . . 24 5 . . Terrain Rammed . | . . . . . . . . Walls Destroyed . | . . . . . . . . Machines Disabled . | . . . . . . . . Actions | -11 -10 -10 -9 -9 -8 -7 -6 --------- Run | Yrd Mat Min Mat Sto Mat Fac Fac Total 4782 | . 664 42 316 555 366 981 1858 Wait 445 | . 15 2 41 92 67 48 180 Move 3689 | . 570 40 242 366 221 837 1413 Hop . | . . . . . . . . Pick Up 106 | . 22 . 11 9 10 16 38 Fast Attach 16 | . 2 . . . 1 1 12 Attach 29 | . . . 2 . 6 2 19 Detach . | . . . . . . . . Swap 92 | . 14 . 3 28 10 14 23 Drop 97 | . 14 . 11 14 8 22 28 Fire 247 | . 27 . 6 36 42 39 97 Melee 60 | . . . . 10 . 2 48 Ram . | . . . . . . . . Kick . | . . . . . . . . Crush . | . . . . . . . . Escape Stasis . | . . . . . . . . Rewire 1 | . . . . . 1 . . Trap . | . . . . . . . . Miscellaneous . | . . . . . . . . Route ------- -11/Scrapyard -10/Materials (discovered 5 exits: *Mat x3 / [*Min x2]) -10/Mines -9/Materials (discovered 4 exits: *Mat / Min / *Sto x2) -9/Storage -8/Materials -7/Factory -6/Factory History --------- Turn | Location | Event 1 | -11/Scrapyard | Discovered new exit (range 0) 1 | -11/Scrapyard | Entered Materials 85 | -10/Materials | Central database locked down 147 | -10/Materials | Discovered new exit (range 4) 206 | -10/Materials | Discovered new exit (range 15) 301 | -10/Materials | Build established: Mutant 485 | -10/Materials | Discovered new exit (range 9) 611 | -10/Materials | Discovered new exit (range 16) 760 | -10/Materials | Discovered new exit (range 5) 876 | -10/Materials | Entered Mines 919 | -10/Mines | Discovered new exit (range 13) 922 | -10/Mines | Met a Derelict bent on vengeance 936 | -10/Mines | Entered Materials 936 | -9/Materials | Evolved 2 slots: Utility x2 1023 | -9/Materials | Central database locked down 1187 | -9/Materials | Discovered new exit (range 7) 1284 | -9/Materials | Identified exit to Mines 1284 | -9/Materials | Identified exit to Storage 1305 | -9/Materials | Discovered new exit (range 16) 1363 | -9/Materials | Entered Storage 2147 | -9/Storage | Discovered new exit (range 8) 2171 | -9/Storage | Entered Materials 2171 | -8/Materials | Evolved 2 slots: Propulsion x1, Utility x1 2243 | -8/Materials | Garrison activated, responded to threat 2397 | -8/Materials | Lost 4 parts (1n2u1w) 2442 | -8/Materials | Repaired Lgt. Armor Plating 2605 | -8/Materials | Discovered new exit (range 16) 2657 | -8/Materials | Entered Factory 2657 | -7/Factory | Accompanied by 1 ally 2657 | -7/Factory | Evolved 2 slots: Propulsion x1, Utility x1 3174 | -7/Factory | Fabricated Hvy. Flail? 3319 | -7/Factory | Central database locked down 3934 | -7/Factory | Discovered new exit (range 14) 3951 | -7/Factory | Entered another Factory area 3951 | -6/Factory | Evolved 2 slots: Propulsion x2 4467 | -6/Factory | Spotted B-75 Beast 4569 | -6/Factory | Core integrity fell below 50% 4575 | -6/Factory | Destroyed B-75 Beast 4613 | -6/Factory | Lost 14 parts (1p8n4u1w) 4872 | -6/Factory | Build established: Scavenger-Mutant 5006 | -6/Factory | Cargo convoy interrupted 5245 | -6/Factory | Core integrity fell below 20% 6010 | -6/Factory | Lost 3 parts (3n) 6290 | -6/Factory | Build established: Mutant 6501 | -6/Factory | Destroyed by P-60 Hacker with Shock Rifle Last Messages --------------- 06239_ K-01 Serf cleans the Repair Station. 06251_ System corrupted: Energy discharge (-45). 06251_ K-01 Serf cleans the Repair Station. 06279_ System corrupted: Energy discharge (-42). 06315_ K-01 Serf cleans the Nuclear Reactor. 06319_ System corrupted: Matter fused (-8). 06321_ K-01 Serf cleans the Nuclear Reactor. 06329_ U-05 Engineer builds a Wall. 06338_ System corrupted: IFF burst signal emitted. 06357_ Acquired 18 matter. 06359_ System corrupted: Heat flow error (+211). 06378_ System corrupted: IFF burst signal emitted. 06381_ U-05 Engineer builds a Wall. 06401_ ALERT: Potential suspicious activity detected, Programmers report to Factory Zone 1W. 06435_ Acquired Imp. Carbon-fiber Leg. 06456_ UEPYIE%BGIZ9308N5BLBWIYI3QKEOP 06478_ O-16 Technician: "IFF HANDSHAKE FAILED. SECURING TERMINAL." 06491_ ALERT: Hostiles spotted, dispatching reinforcements to Terminal F008. Map ----- +----------------------------------------------------+ | ??# #????? "" # #??????????????# | | ?? ????? #""" #?? """"" # | | ? ????? ?#""" #??###################+### | | ????? ?#""" #??## # | | ?"?""???????" ?# #??## # | | ????????????? ??#""" #??## # | | ?????????????????#""" #??## # | | ?????????????????#""" #??## # | | ?????????????????# ##### * # ## | | ?????????????????######################+### # | | ????????????????????????## # # | | ????????????????????????## ^ # + | | ????????????????????????## ^ # # | | ????????????????????????## # # | | ????????????????????????##/###+##+## # | | ????????????????????????## ### ##### | | ????????????????????????## ### ##### | | ????????????????????????## ### """ * """ ##?### | | ????????????????????????## ### """ "Y" ##?### | | ????????????????????????## """ ##???? | | ????????????????????????## ##???? | | ???????????????## ?? ##### ##???? | | ??????????????? # ##### ######+####+##???? | | ??????????????? # + #???? | | ??????????????? # #####p### ## ???????????????? | | ??????????????? # ?? ## @ ## ## ???????????????? | | ?????????????????????## "## ##????????????????? | | ?????????????????????## ! "## ##????????????????? | | ?????????????????????## "## ??????????????????? | | ?????????????????????## T## ??????????????????? | | ?????????????????????## "## ??????????????????? | | ?????????????????????##k "## ??????????????????? | | ?????????????????????## = "##???????????????????? | | ?????????????????????## ##???????????????????? | | ?????????????????????## [[! ##???????????????????? | | ????????????????????? + [!! ##???????????????????? | | ?????????????????????## [!! ##???????????????????? | | ?????????????????????#########???????????????????? | | ?????????????????????#########???????????????????? | | ?????????????????????????????????????????????????? | | ?????????????????????????????????????????????????? | | ?????????????????????????????????????????????????? | | ?????????????????????????????????????????????????? | | ?????????????????????????????????????????????????? | | ?????????????????????????????????????????????????? | | ?????????????????????????????????????????????????? | | ?????????????????????????????????????????????????? | | ?????????????????????????????????????????????????? | | ?????????????????????????????????????????????????? | | ?????????????????????????????????????????????????? | +----------------------------------------------------+ Best States ------------- Heat Dissipation 88 Coolant Potential 65 Energy Generation 18 Energy Capacity 290 Matter Stores 300 Matter Capacity 300 Sight Range 16 Terrain Scan Density 10 Armor Coverage 300 Core Shielding 30 Evasion (%) 55 Targeting Accuracy 10 Melee Accuracy 16 Target Analysis 6 Recoil Reduction 4 Item Schematics ----------------- Com. Wheel | -9/Materials | Scanalyzed Hvy. Mace | -9/Storage | Hacked Hvy. Flail | -9/Storage | Hacked Imp. Treads | -7/Factory | Scanalyzed Nuclear Pulse Array | -6/Factory | Hacked Robot Schematics ------------------ None Fabricated ------------ Hvy. Flail | x2 | -7/Factory Repaired ---------- Lgt. Armor Plating | 16% | -8/Materials Studied --------- Med. Treads | -7/Factory | Hacked EMP Blaster | -7/Factory | Hacked Alien Tech Used ----------------- None Achievements -------------- Jackpot Challenges ------------ None Game ------ Seed CouplerPersonalSink Manual? 0 Play Time 02:34:07 Cumulative 203.5 hours Start 2026.07.09 @ 13:25:02 End 2026.07.09 @ 16:19:41 Sessions 1 Manual Loads 0 Difficulty Rogue Special Mode None Game No. 102 Rogue 102 Adventurer 0 Explorer 0 Win Type - Total 4 Types 4/0/0/0/0/0/0/0/0/0 Lore% 32 Gallery% 47 Achievement% 28 Wizard Run 0 Options --------- Layout 0 ASCII 0 Keyboard 0 Movement Mouse Keybinds 0 Fullscreen 1 Font 18/SmallcapsGlow Map View 76x50 Zoom Use 0% Tactical HUD 1 Map Filters NONE Filters NONE Steam 1 RUN: 61221961-c212-4e95-8bad-a6dcd6c03e11